[Event "FIDE WCCC U10 2018"]
[Site "Santiago de Compostela"]
[Date "2018.11.09"]
[Round "5"]
[White "Uritsky, Yonathan"]
[Black "Seemann, Jakub"]
[Result "0-1"]
[ECO "B91"]
[WhiteElo "1902"]
[BlackElo "1869"]
[Annotator "NA RC"]
[PlyCount "70"]
[EventDate "2018.11.04"]
[EventType "swiss"]
[EventCountry "ESP"]
[SourceTitle "playchess.com"]
[Source "ChessBase"]
[SourceQuality "1"]
[TimeControl "40/5400+30:1800+30"]

{[%evp 22,68,29,34,42,50,69,54,133,139,157,87,137,77,32767,18,18,-84,-85,-87,32767,32767,-89,-67,32767,32767,32767,32767,32767,-126,32767,-127,-128,32767,32767,-192,-193,-193,-189,32767,-249,32767,-523,-537,32767,32767,32767,-576,-627]} 1. e4 {[%emt 0:00:00]} c5 {[%emt 0:00:00]} 2. Nf3 {[%emt 0:00:18]} d6 {[%emt 0:00:00]} 3. d4 {[%emt 0:00:22]} cxd4 {[%emt 0:00:00]} 4. Nxd4 {[%emt 0:00:05]} Nf6 {[%emt 0:00:05]} 5. Nc3 {[%emt 0:00:19]} a6 {[%emt 0:00:10]} 6. g3 {[%emt 0:00:35]} e5 {[%emt 0:00:28]} 7. Nde2 {[%emt 0:00:14]} Be7 {[%emt 0:01:13]} 8. Bg2 {[%emt 0:00:28]} O-O {[%emt 0:00:29]} 9. O-O {[%emt 0:00:35] B91: Sizilianisch (Najdorf-Variante mit 6.g3)} h6 {[%emt 0:01:23]} (9... b5 10. Nd5 Nbd7 11. Nec3 Bb7 12. b3 Rc8 13. Be3 h6 14. Bh3 b4 15. Nxf6+ Nxf6 16. Bxc8 Qxc8 17. Nd5 Nxd5 18. exd5 {½-½ (71) Ragger,M (2686)-Saric,I (2689) Batumi 2018}) 10. a4 {[%emt 0:01:39]} Be6 {[%emt 0:00:36]} 11. h3 {[%emt 0:04:19]} Qd7 $146 {[%emt 0:04:16]} ({Vorgänger:} 11... Nc6 12. Nd5 Bxd5 13. exd5 Nb8 14. a5 Nbd7 15. c4 Qc7 16. b3 b6 17. axb6 Qxb6 {0-1 (48) Kotter,R (2273)-Rybarczyk,K (2161) Germany 2015}) 12. Kh2 {[%emt 0:00:40]} Rd8 {[%emt 0:02:22]} 13. f4 {[%emt 0:01:54]} Qc6 {[%emt 0:12:39]} 14. b3 {[%emt 0:06:38]} d5 {[%emt 0:03:35] [#]} (14... Qc7 $14) 15. exd5 $1 {[%emt 0:11:08]} Nxd5 {[%emt 0:07:35] [#]} 16. Qe1 {[%emt 0:01:10]} ({And not} 16. fxe5 Nxc3 17. Qxd8+ Bxd8 $15) (16. f5 $142 $1 {[%cal Rf5e6]} Nxc3 {[#]} 17. Qxd8+ $1 {[%mdl 512]} Bxd8 18. Bxc6 Nxc6 19. Nxc3) 16... f6 {[%emt 0:08:31]} 17. Bb2 {[%emt 0:06:45]} Qc7 {[%emt 0:04:17] [#]} 18. Nxd5 $2 {[%emt 0:02:17]} ({White should play} 18. Nd4 $1 $18 {[%mdl 512]} Bf7 (18... exd4 19. Qxe6+) 19. fxe5 Nxc3 20. Ne6 (20. Bxc3 Qxe5 21. Nf5 Qxe1 $16) (20. Qxc3 Qxc3 21. Bxc3 fxe5 $16) 20... Bxe6 21. exf6) 18... Bxd5 {[%emt 0:00:13]} 19. Nc3 {[%emt 0:00:12]} (19. Bxd5+ $11 Rxd5 20. c4) 19... Bxg2 {[%emt 0:00:16]} 20. Kxg2 {[%emt 0:00:13]} Nc6 {[%emt 0:14:30]} 21. Qe4 {[%emt 0:08:55]} Rd2+ {[%emt 0:01:55]} 22. Rf2 {[%emt 0:00:53]} Rad8 {[%emt 0:02:06]} 23. Qc4+ {[%emt 0:02:09]} Kh8 {[%emt 0:00:34]} 24. Raf1 {[%emt 0:00:13]} exf4 {[%emt 0:01:32]} 25. Qxf4 {[%emt 0:06:14]} Qxf4 {[%emt 0:00:45]} 26. gxf4 {[%emt 0:00:06]} Bc5 {[%emt 0:00:07]} 27. Ne4 {[%emt 0:04:19]} Rxf2+ {[%emt 0:00:23]} 28. Nxf2 {[%emt 0:00:42]} Rd2 {[%emt 0:00:11]} 29. Kf3 {[%emt 0:01:10]} Rxc2 {[%emt 0:00:59]} 30. Nd3 {[%emt 0:02:42]} Bb6 {[%emt 0:04:21]} 31. Re1 {[%emt 0:04:46]} Rd2 {[%emt 0:02:27]} 32. Re3 {[%emt 0:07:45]} Bxe3 {[%emt 0:00:11]} 33. Kxe3 {[%emt 0:00:13]} Rh2 {[%emt 0:00:28]} 34. Nf2 {[%emt 0:00:07]} Nb4 $19 {[%emt 0:00:29]} 35. Bc1 {[%emt 0:00:47]} Rxf2 {[%emt 0:00:08]} 0-1

[Event "FIDE WCCC U10 2018"]
[Site "Santiago de Compostela"]
[Date "2018.11.09"]
[Round "5"]
[White "Habans Aguerrea, Javier"]
[Black "von Mettenheim, Johannes"]
[Result "1-0"]
[ECO "A45"]
[WhiteElo "1892"]
[BlackElo "1718"]
[Annotator "NA RC"]
[PlyCount "101"]
[EventDate "2018.11.04"]
[EventType "swiss"]
[EventCountry "ESP"]
[SourceTitle "playchess.com"]
[Source "ChessBase"]
[SourceQuality "1"]
[TimeControl "40/5400+30:1800+30"]

{[%evp 18,100,69,75,32767,79,85,53,55,42,59,45,99,30,33,22,45,28,35,39,24,-6,0,32767,35,32767,32767,32767,32767,32767,42,52,68,32767,32767,32767,67,41,32767,122,146,180,374,407,485,32767,118,32767,32767,56,104,83,109,68,32767,543,504,585,32767,356,393,408,520,32767,530,32767,569,32767,32767,914,890,32767,951,1008,1126,32767,32767,32767,32767,32767,2387,32767,29992,29993,29997]} 1. d4 {[%emt 0:00:00]} Nf6 {[%emt 0:00:00]} 2. Bg5 {[%emt 0:00:00]} d5 {[%emt 0:00:00]} 3. e3 {[%emt 0:00:55]} c5 {[%emt 0:00:15]} 4. Nd2 {[%emt 0:00:13] D00: 1 d4 d5: Unusual lines} (4. Bxf6 gxf6 5. dxc5 e6 6. Nf3 Bxc5 7. Be2 Nc6 8. O-O O-O 9. c4 dxc4 10. Qa4 Qe7 11. Qxc4 b6 12. Nc3 Bb7 13. Qh4 Nb4 14. Rfd1 Rfd8 15. a3 Nd5 16. Nxd5 Rxd5 17. b4 Bd6 18. e4 Rxd1+ 19. Rxd1 Kg7 20. e5 {½-½ (20) Shimanov,A (2626)-Lenderman,A (2626) Saint Louis 2018}) 4... Nc6 {[%emt 0:00:08]} 5. c3 {[%emt 0:01:02]} Qb6 {[%emt 0:00:15]} 6. Qb3 {[%emt 0:00:16]} c4 {[%emt 0:00:07]} 7. Qc2 $146 {[%emt 0:00:22]} ({Predecessor:} 7. Qxb6 axb6 8. a3 b5 9. Rd1 Nd7 10. e4 e6 11. g3 Nb6 {0-1 (58) Cech,P (2355)-Pacher,M (2493) Slovakia 2017}) 7... Nd7 {[%emt 0:06:42]} 8. e4 {[%emt 0:02:35]} e6 {[%emt 0:00:07]} 9. g3 {[%emt 0:01:59]} h6 {[%emt 0:06:28]} 10. Be3 {[%emt 0:01:21]} Qd8 {[%emt 0:03:44]} 11. Bg2 {[%emt 0:00:30]} Nf6 {[%emt 0:00:23]} 12. e5 {[%emt 0:00:49]} Nd7 {[%emt 0:00:06]} 13. f4 {[%emt 0:00:20]} g6 {[%emt 0:01:09]} 14. Ne2 {[%emt 0:02:50]} Ne7 {[%emt 0:06:03]} 15. Rf1 {[%emt 0:02:58]} (15. b3 $16) 15... Nf5 {[%emt 0:01:10]} 16. Bf2 {[%emt 0:01:27]} h5 {[%emt 0:03:58]} 17. h3 {[%emt 0:03:47]} Rb8 {[%emt 0:17:13]} 18. Nf3 {[%emt 0:03:12]} Be7 {[%emt 0:06:34]} 19. Kd2 {[%emt 0:03:32]} Nh6 {[%emt 0:07:45]} 20. Rh1 {[%emt 0:03:22]} Rg8 {[%emt 0:04:38]} 21. Rag1 {[%emt 0:04:19]} b5 {[%emt 0:15:48]} 22. Bf1 {[%emt 0:00:24]} b4 {[%emt 0:00:27]} 23. g4 {[%emt 0:00:11]} bxc3+ $2 {[%emt 0:00:08]} (23... Qa5 $17 24. gxh5 Qxa2 25. hxg6 Rxg6 26. Rxg6 fxg6) 24. Nxc3 {[%emt 0:00:38]} Qb6 {[%emt 0:08:43]} 25. Kc1 {[%emt 0:01:31]} Nf8 {[%emt 0:06:33]} 26. Be3 {[%emt 0:01:33]} Rh8 $1 {[%emt 0:02:05]} 27. Bd2 {[%emt 0:06:33]} Ng8 {[%emt 0:01:18]} 28. f5 $1 {[%emt 0:00:31]} gxf5 {[%emt 0:01:12]} 29. gxf5 {[%emt 0:00:02]} exf5 $2 {[%emt 0:00:17]} (29... Nh6 {was called for.}) 30. Nxd5 {[%emt 0:00:43]} Qb7 {[%emt 0:01:13]} 31. Nxe7 {[%emt 0:02:56]} Nxe7 {[%emt 0:00:05]} 32. Ng5 {[%emt 0:01:30]} Be6 {[%emt 0:00:15]} 33. Bg2 {[%emt 0:04:01]} Qa6 {[%emt 0:00:50]} 34. a3 {[%emt 0:02:07]} Qb6 {[%emt 0:00:47]} 35. Bc3 {[%emt 0:00:26]} Nh7 {[%emt 0:00:33]} 36. Nxe6 {[%emt 0:03:43]} fxe6 {[%emt 0:00:03]} 37. Bf3 {[%emt 0:01:25]} Nf8 {[%emt 0:00:18]} 38. Qa4+ {[%emt 0:00:24]} Kf7 {[%emt 0:00:23]} 39. Rg5 {[%emt 0:01:24]} Rg8 {[%emt 0:01:09]} 40. Bxh5+ {[%emt 0:00:00]} Nfg6 {[%emt 0:00:00]} 41. Rhg1 {[%emt 0:02:06]} Qc7 {[%emt 0:04:56]} 42. d5 {[%emt 0:04:05]} exd5 {[%emt 0:01:28]} 43. e6+ {[%emt 0:00:11]} (43. Bxg6+ $142 Nxg6 {[#]} 44. e6+ $1 {[%mdl 512]} Ke7 45. Rxg6 Rxg6 46. Rxg6) 43... Kxe6 {[%emt 0:00:06]} 44. Bxg6 {[%emt 0:00:22]} d4 {[%emt 0:01:19]} 45. Ba5 {[%emt 0:02:34]} Qf4+ {[%emt 0:02:10]} 46. Bd2 {[%emt 0:00:09]} Qc7 {[%emt 0:00:43]} 47. Bxf5+ {[%emt 0:01:50]} Nxf5 {[%emt 0:00:09]} 48. Rxg8 {[%emt 0:00:08]} c3 {[%emt 0:00:31]} 49. bxc3 {[%emt 0:02:17]} Ne3 {[%emt 0:08:00]} 50. R8g6+ {[%emt 0:00:26]} Kf5 {[%emt 0:00:13]} 51. R1g5+ {[%emt 0:00:16]} 1-0

[Event "FIDE WCCC U10 2018"]
[Site "Santiago de Compostela"]
[Date "2018.11.09"]
[Round "5"]
[White "Poschadel, Andreas Gregor"]
[Black "Orujov, Farid"]
[Result "0-1"]
[ECO "A48"]
[WhiteElo "1854"]
[BlackElo "1643"]
[Annotator "NA RC"]
[PlyCount "124"]
[EventDate "2018.11.04"]
[EventType "swiss"]
[EventCountry "ESP"]
[SourceTitle "playchess.com"]
[Source "ChessBase"]
[SourceQuality "1"]
[TimeControl "40/5400+30:1800+30"]

{[%evp 11,124,-3,32767,32767,-16,-10,-12,-5,0,4,21,9,10,0,0,-14,2,-4,32767,32767,32767,32767,33,34,33,22,18,32767,32767,32767,32767,24,32767,-20,16,-7,32767,32767,0,0,0,32767,-3,32767,0,32767,32767,32767,32767,32767,32767,32767,32767,32767,32767,-12,-25,-35,0,32767,32767,-33,-20,-39,-1,-18,-8,-5,0,-80,-81,-98,-8,-12,-8,0,0,-8,-14,-27,-25,-21,-45,32767,32767,-80,0,32767,-14,-295,-206,-314,-1220,32767,32767,-1067,-297,32767,-561,-360,-721,-604,-633,-758,-1111,-4618,-4622,-12845,-29982,-29970,-12847,-29989,-29987,-29987,-29988]} 1. d4 {[%emt 0:00:00]} Nf6 {[%emt 0:00:00]} 2. Nf3 {[%emt 0:00:00]} g6 {[%emt 0:00:00]} 3. Bf4 {[%emt 0:00:00]} Bg7 {[%emt 0:04:00]} 4. e3 {[%emt 0:00:00]} d5 {[%emt 0:03:07]} 5. h3 {[%emt 0:00:39]} O-O {[%emt 0:02:53]} 6. Bd3 {[%emt 0:01:33]} c5 {[%emt 0:01:03]} 7. c3 {[%emt 0:00:18]} Qb6 {[%emt 0:12:49] D02: 1 d4 d5 2 Nf3 sidelines, including 2...Nf6 3 g3 and 2...Nf6 3 Bf4} (7... b6 8. O-O Ba6 9. Bxa6 Nxa6 10. Nbd2 Nc7 11. Rc1 Ne6 12. Be5 Qd7 13. Qe2 Qb7 14. Rfd1 Rac8 15. Nh2 Rfd8 {0-1 (55) Anikonov,D (2400)-Dreev,A (2652) Khanty-Mansiysk 2016}) 8. Qc1 {[%emt 0:01:30] LiveBook: 4 Games} Nc6 {[%emt 0:01:14]} 9. Nbd2 {[%emt 0:03:44]} cxd4 {[%emt 0:02:25]} 10. exd4 {[%emt 0:00:16]} Nd7 {[%emt 0:08:39]} (10... Nh5 $5 {[%cal Rh5f4]} 11. Bh2 Bh6 $11) 11. Be3 $146 {[%emt 0:05:56]} ({Predecessor:} 11. O-O e5 12. dxe5 Ndxe5 13. Bc2 Bd7 14. Re1 Rfe8 15. Be3 Nxf3+ 16. Nxf3 d4 17. cxd4 Nxd4 18. Nxd4 Bxd4 19. Bxd4 Rxe1+ 20. Qxe1 Qxd4 21. Rd1 {½-½ (21) Josting,F-Papenkordt,K Dresden 2001}) 11... Qc7 {[%emt 0:05:38]} 12. Nb3 {[%emt 0:05:57]} e5 {[%emt 0:06:30]} 13. dxe5 {[%emt 0:02:18]} Ndxe5 {[%emt 0:00:53]} 14. Be2 {[%emt 0:01:08]} Bf5 {[%emt 0:23:09]} 15. O-O {[%emt 0:02:16]} Be4 {[%emt 0:03:47]} 16. Nfd4 {[%emt 0:08:48]} Nxd4 {[%emt 0:10:43]} 17. Nxd4 {[%emt 0:25:29]} Bd3 {[%emt 0:00:29]} 18. Bxd3 {[%emt 0:04:51]} Nxd3 {[%emt 0:00:08]} 19. Qd2 {[%emt 0:00:21]} Ne5 {[%emt 0:00:43]} 20. b3 {[%emt 0:01:33]} a6 {[%emt 0:02:39]} 21. Rac1 {[%emt 0:00:51]} Rac8 {[%emt 0:02:56]} 22. f4 {[%emt 0:08:26]} (22. Ne2 $14) 22... Nc6 {[%emt 0:05:17]} 23. c4 {[%emt 0:03:16]} Nxd4 {[%emt 0:00:53]} 24. Bxd4 {[%emt 0:00:29]} Bxd4+ {[%emt 0:01:24]} 25. Qxd4 {[%emt 0:00:02]} dxc4 {[%emt 0:00:37]} 26. Rxc4 {[%emt 0:01:10]} Qe7 {[%emt 0:00:30]} 27. Rfc1 {[%emt 0:01:02]} Rxc4 {[%emt 0:00:12]} 28. Qxc4 {[%emt 0:00:09]} Qe3+ {[%emt 0:00:17]} 29. Kh1 {[%emt 0:00:21]} b5 {[%emt 0:00:53]} 30. Qc7 {[%emt 0:00:17]} Qf2 {[%emt 0:00:13]} 31. Rc2 {[%emt 0:01:51]} Qf1+ {[%emt 0:00:41]} 32. Kh2 {[%emt 0:00:04]} Re8 {[%emt 0:00:38]} 33. Rc1 {[%emt 0:02:26]} Qf2 {[%emt 0:00:18]} 34. Rc2 {[%emt 0:00:29]} Qf1 {[%emt 0:00:05]} 35. Rc1 {[%emt 0:00:38]} Qf2 {[%emt 0:00:23]} 36. Rc2 {[%emt 0:00:28]} Qd4 {[%emt 0:00:32]} 37. f5 {[%emt 0:17:20]} Re5 {[%emt 0:00:36]} 38. Qb8+ {[%emt 0:01:09]} Kg7 {[%emt 0:00:14]} 39. f6+ {[%emt 0:01:31]} Kxf6 {[%emt 0:01:12]} 40. Qh8+ {[%emt 0:00:00]} (40. Qf8 $11) 40... Kg5 {[%emt 0:00:00]} 41. Qg7 {[%emt 0:12:26]} f6 {[%emt 0:10:02]} ({Better is} 41... f5 $17 42. Qxh7 Re1 43. h4+ Qxh4+ 44. Qxh4+ Kxh4) 42. Qxh7 {[%emt 0:00:55]} Re1 {[%emt 0:18:46] [#]} 43. h4+ $1 {[%emt 0:06:36]} Kf5 {[%emt 0:02:09]} 44. g4+ {[%emt 0:01:50]} Kf4 $1 {[%emt 0:00:50]} 45. Qc7+ $1 {[%emt 0:00:40]} Qe5 {[%emt 0:01:06]} 46. Qxe5+ {[%emt 0:00:30]} Rxe5 {[%emt 0:00:54]} 47. Rc6 {[%emt 0:02:53]} Kxg4 {[%emt 0:00:29]} 48. Rxa6 {[%emt 0:00:25]} (48. Rxf6 $11 Re2+ 49. Kg1) 48... Rf5 {[%emt 0:00:16]} 49. a4 {[%emt 0:00:27]} Kxh4 {[%emt 0:00:44]} 50. a5 $2 {[%emt 0:00:11] [#]} (50. axb5 $1 $11 g5 51. b4) 50... b4 $1 {[%emt 0:00:28]} 51. Ra8 {[%emt 0:00:09]} Rf2+ {[%emt 0:00:30]} 52. Kg1 {[%emt 0:00:06]} Ra2 {[%emt 0:00:16]} 53. a6 {[%emt 0:00:28]} Kg5 {[%emt 0:00:30]} (53... Kg3 $142 {[%cal Ra2a1]} 54. Kf1 g5) 54. a7 {[%emt 0:00:25]} f5 {[%emt 0:00:28]} 55. Kf1 {[%emt 0:03:18]} Kf4 {[%emt 0:00:26]} 56. Rb8 {[%emt 0:03:40]} Rxa7 {[%emt 0:00:12]} 57. Rxb4+ {[%emt 0:00:01]} Kf3 {[%emt 0:00:26]} 58. Kg1 {[%emt 0:00:31]} f4 {[%emt 0:00:24]} 59. Rc4 {[%emt 0:00:11]} Kg3 {[%emt 0:01:06]} 60. Kf1 {[%emt 0:00:20]} f3 {[%emt 0:00:20]} 61. Ke1 {[%emt 0:00:01]} Ra1+ {[%emt 0:00:18]} 62. Kd2 {[%emt 0:00:06]} f2 {[%emt 0:00:07]} 0-1

[Event "FIDE WCCC U10 2018"]
[Site "Santiago de Compostela"]
[Date "2018.11.09"]
[Round "5"]
[White "Tsirilman, Guy"]
[Black "Ivanov, Svetlen"]
[Result "1/2-1/2"]
[ECO "A04"]
[WhiteElo "1813"]
[BlackElo "1597"]
[Annotator "NA RC"]
[PlyCount "92"]
[EventDate "2018.11.04"]
[EventType "swiss"]
[EventCountry "ESP"]
[SourceTitle "playchess.com"]
[Source "ChessBase"]
[SourceQuality "1"]
[TimeControl "40/5400+30:1800+30"]

{[%evp 13,92,5,16,-46,0,-5,29,16,41,23,52,32767,32767,32767,32767,32767,32767,32767,32767,32767,32767,-25,32767,32767,32767,32767,-25,32767,32767,32767,32767,32767,32767,-20,-20,32767,0,-2,0,-62,-61,32767,-14,32767,-14,-9,32,32767,27,32767,32767,34,32767,50,62,68,32767,32767,95,12,67,32767,32767,32767,32767,32767,32767,32767,32767,32767,63,96,104,43,37,49,43,36,40,21,37]} 1. Nf3 {[%emt 0:00:19]} c5 {[%emt 0:01:16]} 2. g3 {[%emt 0:00:48]} Nf6 {[%emt 0:00:13]} 3. Bg2 {[%emt 0:01:03]} g6 {[%emt 0:00:14]} 4. O-O {[%emt 0:00:36]} Bg7 {[%emt 0:00:06]} 5. d3 {[%emt 0:01:07]} O-O {[%emt 0:00:24]} 6. e4 {[%emt 0:02:24]} Nc6 {[%emt 0:01:47]} 7. Nc3 {[%emt 0:07:33]} d5 {[%emt 0:11:58]} 8. h3 {[%emt 0:07:21] A05: Réti Opening: 1 Nf3 Nf6} (8. Nxd5 Nxd5 9. exd5 Qxd5 10. Nd2 Qd7 11. a4 Qc7 12. Ne4 b6 13. a5 Bb7 14. a6 Bc8 15. Re1 Bf5 16. Nc3 Rad8 17. Nd5 Qd7 {1-0 (72) Movsesian,S (2642)-Laznicka,V (2608) Ostrava 2007}) 8... dxe4 {[%emt 0:15:44]} 9. dxe4 {[%emt 0:01:40] LiveBook: 4 Games} Qxd1 $146 {[%emt 0:01:55]} ({Predecessor:} 9... Be6 10. Be3 Qa5 11. Qc1 Rfd8 12. Re1 Rac8 13. Nd2 c4 14. Nf3 Ne8 15. Bd2 Qa6 {½-½ (92) Khoroshev,N (2286)-Idani,P (2462) Hamedan 2018}) 10. Rxd1 {[%emt 0:00:30]} Nb4 {[%emt 0:04:39]} 11. Ne1 {[%emt 0:10:56]} Be6 {[%emt 0:16:40]} 12. a3 {[%emt 0:06:56]} Nc6 {[%emt 0:00:36]} 13. Be3 {[%emt 0:02:36]} Nd7 {[%emt 0:03:34]} 14. Nd3 {[%emt 0:07:28]} Nd4 {[%emt 0:02:16]} 15. Bxd4 {[%emt 0:00:36]} cxd4 {[%emt 0:00:38]} 16. Nd5 {[%emt 0:00:39]} Bxd5 {[%emt 0:00:55]} 17. exd5 {[%emt 0:01:12]} Rac8 {[%emt 0:01:35]} 18. Rd2 {[%emt 0:01:37]} Nb6 {[%emt 0:02:54]} 19. b3 {[%emt 0:04:29]} Rfd8 {[%emt 0:01:46]} 20. Re1 {[%emt 0:01:13]} Bf6 {[%emt 0:00:59]} 21. d6 {[%emt 0:02:58]} Rxd6 {[%emt 0:02:49]} 22. Bxb7 {[%emt 0:00:15]} Rc7 {[%emt 0:00:16]} 23. Bg2 {[%emt 0:02:40]} Nd7 {[%emt 0:05:52]} 24. f4 {[%emt 0:02:18]} Nc5 {[%emt 0:05:37]} 25. Nxc5 {[%emt 0:05:37]} Rxc5 {[%emt 0:00:06]} 26. Red1 {[%emt 0:02:53]} (26. Be4 $11) 26... Rc3 {[%emt 0:02:11]} 27. Kf2 {[%emt 0:11:35]} g5 {[%emt 0:01:32]} 28. Bf1 {[%emt 0:03:54]} gxf4 {[%emt 0:01:40]} 29. gxf4 {[%emt 0:00:22]} e5 {[%emt 0:02:42]} 30. Bd3 {[%emt 0:01:06]} Bh4+ {[%emt 0:05:47]} 31. Kf3 {[%emt 0:04:13]} Re6 {[%emt 0:03:27]} 32. Re2 {[%emt 0:03:00]} exf4 {[%emt 0:01:43]} 33. Rxe6 {[%emt 0:00:22]} fxe6 {[%emt 0:00:01]} 34. Kxf4 {[%emt 0:00:23]} Rc5 {[%emt 0:01:32]} 35. Rg1+ {[%emt 0:00:39]} Kf7 {[%emt 0:00:31]} 36. b4 {[%emt 0:00:53]} (36. Bxh7 $16 Rc8 37. Bg6+ Ke7 38. Rg4) 36... Rd5 {[%emt 0:01:06]} 37. a4 {[%emt 0:01:31]} Bf2 {[%emt 0:00:44]} 38. Rf1 {[%emt 0:00:36]} Be3+ {[%emt 0:00:01]} 39. Ke4+ {[%emt 0:00:38]} Ke7 {[%emt 0:00:10]} 40. Bc4 {[%emt 0:00:00]} Rh5 {[%emt 0:00:00]} 41. Rf3 {[%emt 0:03:03]} Rf5 {[%emt 0:10:17]} (41... Bd2 $11) 42. Rxf5 {[%emt 0:01:22]} exf5+ {[%emt 0:01:23]} 43. Kxf5 {[%emt 0:00:23]} Kd6 {[%emt 0:00:26]} 44. Ke4 {[%emt 0:01:33]} Bd2 {[%emt 0:01:03]} 45. b5 {[%emt 0:00:58]} Kc5 {[%emt 0:00:34]} 46. Bd3 {[%emt 0:00:55]} h6 $14 {[%emt 0:00:33]} 1/2-1/2

[Event "FIDE WCCC U10 2018"]
[Site "Santiago de Compostela"]
[Date "2018.11.09"]
[Round "5"]
[White "Kandil, Ahmed Abdel Khalek"]
[Black "Hagner, Bennet"]
[Result "1/2-1/2"]
[ECO "B17"]
[WhiteElo "1812"]
[BlackElo "1912"]
[Annotator "NA RC"]
[PlyCount "92"]
[EventDate "2018.11.04"]
[EventType "swiss"]
[EventCountry "ESP"]
[SourceTitle "playchess.com"]
[Source "ChessBase"]
[SourceQuality "1"]
[TimeControl "40/5400+30:1800+30"]

{[%evp 23,92,-13,-8,-12,-10,-8,-1,-5,24,24,23,17,27,17,25,27,32767,4,7,-21,-26,-12,-4,-11,-6,-8,-2,-9,-7,32767,32767,32767,32767,32767,-64,32767,0,-68,32767,32767,32767,8,32767,32767,0,0,8,32767,-8,-8,0,32767,32767,0,32767,32767,-8,-8,32767,32767,-8,32767,32767,32767,-8,-8,0,0,0,-4,0]} 1. e4 {[%emt 0:00:00]} c6 {[%emt 0:00:00]} 2. d4 {[%emt 0:00:00]} d5 {[%emt 0:00:00]} 3. Nd2 {[%emt 0:00:00]} dxe4 {[%emt 0:00:00]} 4. Nxe4 {[%emt 0:00:00]} Nd7 {[%emt 0:00:14]} 5. Nf3 {[%emt 0:00:08]} Ngf6 {[%emt 0:00:20]} 6. Ng3 {[%emt 0:00:17]} e6 {[%emt 0:00:52]} 7. Bd3 {[%emt 0:00:25]} Be7 {[%emt 0:01:30]} 8. O-O {[%emt 0:00:21]} O-O {[%emt 0:00:10]} 9. Re1 {[%emt 0:00:15] B17: Caro-Kann: Modern Line (4...Nd7)} (9. b3 b6 10. Bb2 Bb7 11. Qe2 c5 12. Rad1 Qc7 13. c4 Rfe8 14. Rfe1 a6 15. Bb1 cxd4 16. Nxd4 Bb4 17. Rf1 {½-½ (55) Ponomariov,R (2709)-Wojtaszek,R (2749) Tallinn 2016}) 9... b6 {[%emt 0:01:00]} 10. Bf4 {[%emt 0:00:22]} Bb7 {[%emt 0:00:43]} 11. c4 {[%emt 0:01:18]} c5 {[%emt 0:00:27]} 12. dxc5 {[%emt 0:20:18]} Nxc5 {[%emt 0:04:02]} 13. Bc2 {[%emt 0:01:26]} Qxd1 {[%emt 0:06:01]} 14. Raxd1 {[%emt 0:00:12]} Rfd8 $146 {[%emt 0:02:16]} ({Predecessor:} 14... Bxf3 15. gxf3 {½-½ (80) Leshchenko,V (2145)-Ignatenko,V Kiev 2005}) 15. Ne5 {[%emt 0:02:34]} Rxd1 {[%emt 0:06:48]} 16. Rxd1 {[%emt 0:00:18]} Rd8 {[%emt 0:00:31]} 17. Rxd8+ {[%emt 0:00:29]} Bxd8 {[%emt 0:00:08]} 18. b4 {[%emt 0:00:23]} Ncd7 {[%emt 0:03:46]} 19. Nxd7 {[%emt 0:00:43]} Nxd7 {[%emt 0:00:02]} 20. Ne4 {[%emt 0:00:13]} e5 {[%emt 0:05:11]} 21. Nd6 {[%emt 0:03:59]} Bxg2 {[%emt 0:08:04]} 22. Bxe5 {[%emt 0:03:45]} Nxe5 {[%emt 0:00:10]} 23. Kxg2 {[%emt 0:00:07]} Be7 {[%emt 0:02:54]} 24. c5 {[%emt 0:01:08]} Bxd6 {[%emt 0:05:15]} 25. cxd6 {[%emt 0:00:10]} Kf8 {[%emt 0:00:43]} 26. f4 {[%emt 0:02:04]} Nc4 {[%emt 0:00:22]} 27. d7 {[%emt 0:06:02]} Ke7 {[%emt 0:00:09]} 28. Bxh7 {[%emt 0:00:21]} g6 {[%emt 0:01:00]} 29. Kf3 {[%emt 0:00:29]} Nd2+ {[%emt 0:10:19]} (29... Nd6 $17 30. h4 Kxd7) 30. Ke2 {[%emt 0:04:28]} (30. Ke3 $1 $11 Nc4+ 31. Kd4) 30... Ne4 {[%emt 0:00:14]} 31. f5 {[%emt 0:00:52]} Nc3+ {[%emt 0:00:43]} 32. Kd2 {[%emt 0:00:33]} Nxa2 {[%emt 0:00:52]} 33. Bxg6 {[%emt 0:01:22]} Kxd7 {[%emt 0:02:07]} 34. Bxf7 {[%emt 0:00:15]} Nxb4 {[%emt 0:00:09]} 35. h4 {[%emt 0:00:25]} Ke7 {[%emt 0:00:24]} 36. Bg6 {[%emt 0:01:15]} Kf6 {[%emt 0:00:53]} 37. h5 {[%emt 0:01:12]} Kg5 {[%emt 0:01:12]} 38. Kc3 {[%emt 0:00:22]} Nd5+ {[%emt 0:01:15]} 39. Kc4 {[%emt 0:00:37]} Nf6 {[%emt 0:05:38]} 40. Kb5 {[%emt 0:00:00]} Nxh5 {[%emt 0:00:00]} 41. Ka6 {[%emt 0:00:19]} Nf4 {[%emt 0:05:03]} 42. Kxa7 {[%emt 0:00:38]} b5 {[%emt 0:00:20]} 43. Bf7 {[%emt 0:00:23]} b4 {[%emt 0:00:49]} 44. Kb6 {[%emt 0:00:16]} Kxf5 {[%emt 0:01:20]} 45. Kb5 {[%emt 0:00:11]} Nd3 $11 {[%emt 0:00:11]} 46. Bc4 {[%emt 0:00:07]} Ke4 1/2-1/2